{"text_format":"3","workbook":"xlsx","n_sheets":4,"sheets":["Formulario de oferta","Datos del gráfico","Desglose de costes","Resumen de costes de la oferta"],"not_rendered":{"charts":1,"images":2,"defined_names":11},"read":"whole","date_system":"1900"}

{"sheet":"Formulario de oferta","index":0,"n_rows":21,"n_cols":6,"rows_kept":21,"merged":[[0,1,0,4],[1,1,1,2],[1,4,1,5],[7,1,8,1],[7,2,8,2],[10,1,10,5],[12,1,12,5],[14,1,14,5],[15,1,15,2],[15,4,15,5],[16,1,16,2],[16,4,16,5],[18,1,18,5],[19,1,19,2],[19,4,19,5],[20,1,20,2],[20,4,20,5]]}
[null,"Formulario de oferta de construcción"]
[null,"Información del propietario",null,null,"Información del contratista"]
[null,"Nombre","Escriba el nombre del propietario en esta celda",null,"Compañía","Escriba el nombre de la compañía del contratista en esta celda"]
[null,"Dirección","Escriba la dirección del propietario en esta celda",null,"Nombre","Escriba el nombre del contratista en esta celda"]
[null,"Ciudad y código postal","Escriba la ciudad y el código postal del propietario en esta celda",null,"Dirección","Escriba la dirección del contratista en la celda"]
[null,"Teléfono","Escriba el número de teléfono del propietario en esta celda",null,"Ciudad y código postal","Escriba la ciudad y el código postal del contratista en esta celda"]
[null,"Correo electrónico","Escriba la dirección de correo electrónico del propietario en esta celda",null,"Teléfono","Escriba el número de teléfono de contratista en esta celda"]
[null,"Nombre del proyecto","Escriba el nombre del proyecto en esta celda",null,"Correo electrónico","Escriba la dirección de correo electrónico del contratista en esta celda "]
[{"$nulls":4},"Fecha de finalización","Escriba la fecha de finalización en esta celda"]
[null,"Ámbito de trabajo"]
[null,"El ámbito del proyecto del trabajo debe escribirse aquí. Escriba todas las especificaciones que quiera. \n\nTexto de ejemplo: Esto será la simulación de un proyecto para realizar amplias escaleras. Usaremos solo madera de 0,6 x 1,2 y 0,6 x 2,4 m y soportes de vigas para realizar el marco. Las escaleras se cortarán del material con un tamaño de 0,6 x 1,2 m. Se usarán tornillos de al menos 5 cm. Los clavos no serán inferiores a 7,6 cm. El peso mínimo del diseño deberá ser de un mínimo de 225 kg por escalón. Los escalones estarán a la altura de la casa. Un estribo se fijará a la casa. El contratista se encargará de limpiar."]
[null,"No se incluye"]
[null,"Detalles del proyecto que no se incluyen deben escribirse aquí. Escriba todo lo que no se incluye en esta oferta. \n\nTexto de ejemplo: No se instalarán guías. El propietario deberá preparar el suelo. El propietario deberá pintar las escaleras."]
[null,"Propuesta de la compañía"]
[null,"La propuesta de la compañía debe escribirse aquí. Escriba una descripción general de la propuesta incluido quién propone el trabajo, la fecha de finalización esperada y la cantidad de la propuesta.\n\nTexto de ejemplo: Nosotros, Nombre de la Compañía, proponemos el ámbito de trabajo mencionado anteriormente que debe completarse dentro de Fecha de Finalización por un importe de Importe Total."]
[]
[null,"Enviado por (representante de la compañía)",null,null,"Fecha"]
[null,"Aceptación del propietario"]
[null,"La aceptación del propietario debe escribirse aquí. Escriba el nombre del propietario en la declaración de confirmación que incluye la fecha de finalización y el importe total indicado en la propuesta de la compañía. \n\nTexto de ejemplo: Yo, Nombre del Propietario, acepto el ámbito del trabajo propuesto que debe completarse dentro de Fecha de Finalización por un importe de Importe Total."]
[]
[null,"Enviado por (propietario principal o representante autorizado)",null,null,"Fecha"]

{"sheet":"Datos del gráfico","index":1,"n_rows":7,"n_cols":3,"rows_kept":7,"hidden":true}
[]
[null,null,"Total"]
[null,{"$f":"INDEX(BidItems[#Data],MATCH(1,BidItems[Costes clasificados],0),2)","v":"Tarifas peones"},{"$f":"INDEX(BidItems[#Data],MATCH(1,BidItems[Costes clasificados],0),4)","v":200}]
[null,{"$f":"INDEX(BidItems[#Data],MATCH(2,BidItems[Costes clasificados],0),2)","v":"Madera 0,6 x 1,2 x 3 m"},{"$f":"INDEX(BidItems[#Data],MATCH(2,BidItems[Costes clasificados],0),4)","v":99.39999999999999}]
[null,{"$f":"INDEX(BidItems[#Data],MATCH(3,BidItems[Costes clasificados],0),2)","v":"Soportes de vigas"},{"$f":"INDEX(BidItems[#Data],MATCH(3,BidItems[Costes clasificados],0),4)","v":74.7}]
[null,{"$f":"INDEX(BidItems[#Data],MATCH(4,BidItems[Costes clasificados],0),2)","v":"Madera 0,6 x 2,4 x 3 m"},{"$f":"INDEX(BidItems[#Data],MATCH(4,BidItems[Costes clasificados],0),4)","v":33.75}]
[null,{"$f":"INDEX(BidItems[#Data],MATCH(5,BidItems[Costes clasificados],0),2)","v":"Par de guantes, cuero"},{"$f":"INDEX(BidItems[#Data],MATCH(5,BidItems[Costes clasificados],0),4)","v":15.5}]

{"sheet":"Desglose de costes","index":2,"n_rows":14,"n_cols":6,"rows_kept":14,"merged":[[0,1,0,4],[1,1,1,4]]}
[null,"Desglose de costes",{"$nulls":3}," "]
[null,"Lista de materiales y costes"]
[null,"Cant.","Descripción","Coste","Total","Costes clasificados"]
[null,5,"Madera 0,6 x 2,4 x 3 m",{"v":6.75,"d":"6.75 €"},{"$f":"IFERROR(BidItems[[#This Row],[Coste]]*BidItems[[#This Row],[Cant.]], \"\")","v":{"v":33.75,"d":"33.75 €"}},{"$f":"_xlfn.RANK.EQ(BidItems[[#This Row],[Total]],BidItems[Total])","v":4}]
[null,20,"Madera 0,6 x 1,2 x 3 m",{"v":4.97,"d":"4.97 €"},{"$f":"IFERROR(BidItems[[#This Row],[Coste]]*BidItems[[#This Row],[Cant.]], \"\")","v":{"v":99.39999999999999,"d":"99.40 €"}},{"$f":"_xlfn.RANK.EQ(BidItems[[#This Row],[Total]],BidItems[Total])","v":2}]
[null,30,"Soportes de vigas",{"v":2.49,"d":"2.49 €"},{"$f":"IFERROR(BidItems[[#This Row],[Coste]]*BidItems[[#This Row],[Cant.]], \"\")","v":{"v":74.7,"d":"74.70 €"}},{"$f":"_xlfn.RANK.EQ(BidItems[[#This Row],[Total]],BidItems[Total])","v":3}]
[null,2,"Caja de tornillos de 5 cm",{"v":6.67,"d":"6.67 €"},{"$f":"IFERROR(BidItems[[#This Row],[Coste]]*BidItems[[#This Row],[Cant.]], \"\")","v":{"v":13.34,"d":"13.34 €"}},{"$f":"_xlfn.RANK.EQ(BidItems[[#This Row],[Total]],BidItems[Total])","v":6}]
[null,2,"Caja de clavos de 7,6 cm",{"v":3.25,"d":"3.25 €"},{"$f":"IFERROR(BidItems[[#This Row],[Coste]]*BidItems[[#This Row],[Cant.]], \"\")","v":{"v":6.5,"d":"6.50 €"}},{"$f":"_xlfn.RANK.EQ(BidItems[[#This Row],[Total]],BidItems[Total])","v":7}]
[null,2,"Par de guantes, cuero",{"v":7.75,"d":"7.75 €"},{"$f":"IFERROR(BidItems[[#This Row],[Coste]]*BidItems[[#This Row],[Cant.]], \"\")","v":{"v":15.5,"d":"15.50 €"}},{"$f":"_xlfn.RANK.EQ(BidItems[[#This Row],[Total]],BidItems[Total])","v":5}]
[null,2,"Tarifas peones",{"v":100,"d":"100.00 €"},{"$f":"IFERROR(BidItems[[#This Row],[Coste]]*BidItems[[#This Row],[Cant.]], \"\")","v":{"v":200,"d":"200.00 €"}},{"$f":"_xlfn.RANK.EQ(BidItems[[#This Row],[Total]],BidItems[Total])","v":1}]
[{"$nulls":3},"Subtotal",{"$f":"SUBTOTAL(109,BidItems[Total])","v":{"v":443.18999999999994,"d":"443.19 €"}}]
[{"$nulls":3},"Tasa impositiva",{"v":0.075,"d":"7.50%"}]
[{"$nulls":3},"Impuestos",{"$f":"IFERROR(TasaDeImpuestos*BidItems[[#Totals],[Total]], \"\")","v":{"v":33.23924999999999,"d":"33.24 €"}}]
[{"$nulls":3},"Total general",{"$f":"IFERROR(Impuestos+BidItems[[#Totals],[Total]], \"\")","v":{"v":476.4292499999999,"d":"476.43 €"}}]

{"sheet":"Resumen de costes de la oferta","index":3,"n_rows":3,"n_cols":4,"rows_kept":3,"merged":[[1,1,1,2],[2,1,2,2]]}
[null,"Resumen de costes de la oferta"]
[null,"Desglose de materiales y costes",null,"Notas"]
[null,"Gráfico circular que muestra los 5 costes principales por material. Los datos se basan en la tabla de elementos de la oferta en la hoja de cálculo de desglose de costes",null,"Escriba notas en esta celda."]